Cogmind - Beta 15 @@@ ROGUE MODE // 2025.05.30 @ 21:38:49 Player: Polariusz Result: Destroyed by G-50 Soldier with Heavy Laser Performance ------------- Evolutions (3) 1500 Regions Visited (10) 2000 Robots Destroyed (173) 865 Value Destroyed (8513) 8513 Prototype IDs (19) 380 Alien Tech Used (0) 0 Bonus (3806) 3806 TOTAL SCORE: 17064 Bonus ------- High Alert Combat Kills 1458 Follower Combat Kills 948 Entered Garrisons 400 Used RIF Installer 1000 Cogmind --------- Core Integrity 0/700 Matter 188/300 Energy 150/150 System Corruption 4% Temperature Cool (-3) Movement Core (850) Ox16 Location -7/Lower Caves Parts ------- > --- POWER (2) -------- Micro Nuclear Core > --- PROPULSION (2) --- (None) > --- UTILITY (5) ------ Cryofiber Web Large Storage Unit Improved Targeting Computer > --- WEAPON (4) ------- Heavy Plasma Cannon Heavy Plasma Cannon (fused) Heavy Flail > --- INVENTORY (15) --- Light Nuclear Core Light Treads Light Treads Improved Heat Sink Improved Heat Sink Compact Matter Pod (150) Improved Light Armor Plating Improved Light Armor Plating Heavy Plasma Cannon Heavy Plasma Cannon Heavy Plasma Cannon Heavy Plasma Cannon Heavy Plasma Cannon Heavy Plasma Cannon Peak State ------------ > --- POWER ------------ Light Nuclear Core Micro Nuclear Core > --- PROPULSION ------- Improved Medium Treads Improved Medium Treads > --- UTILITY ---------- Cryofiber Web Improved Heat Sink Improved Cooling System Large Storage Unit Improved Targeting Computer > --- WEAPON ----------- Heavy Plasma Cannon Heavy Plasma Cannon Heavy Plasma Cannon Heavy Plasma Cannon > --- INVENTORY -------- Light Nuclear Core Light Treads Light Treads Improved Heat Sink Improved Heat Sink Compact Matter Pod Improved Light Armor Plating Improved Light Armor Plating Heavy Plasma Cannon Heavy Plasma Cannon Heavy Plasma Cannon Heavy Plasma Cannon Improved Grenade Launcher Improved Grenade Launcher Heavy Flail [Rating: 54] Favorites ----------- Power Light Nuclear Core Engine Improved Deuterium Engine Power Core Light Nuclear Core Propulsion Improved Medium Treads Treads Improved Medium Treads Wheel Wheel Utility Improved Heat Sink Device Improved Heat Sink Storage Large Storage Unit Processor Improved Targeting Computer Protection Makeshift Light Armor Plating Weapon Heavy Plasma Cannon Energy Gun Lightning Gun Energy Cannon Heavy Plasma Cannon Ballistic Gun Heavy Assault Rifle Ballistic Cannon Assault Cannon Launcher Improved Grenade Launcher Impact Weapon Heavy Flail Build | -11 -10 -10 -8 -8 -8 -7 -7 -7 -7 -7 ------- Run | Yrd Mat Sub Mat Gar Mat Fac Gar Fac Low Low Slots Evolved 6 | . . . 4 . . 2 . . . . Power 1 | . . . 1 . . . . . . . Propulsion . | . . . . . . . . . . . Utility 3 | . . . 1 . . 2 . . . . Weapon 2 | . . . 2 . . . . . . . Parts Attached 109 | 6 6 12 16 19 4 24 17 2 3 . Power 18 | 1 1 4 2 3 2 2 2 . 1 . Engine 11 | 1 1 4 . 2 1 2 . . . . Core 7 | . . . 2 1 1 . 2 . 1 . Reactor . | . . . . . . . . . . . Propulsion 21 | 2 . 3 4 3 . 6 1 2 . . Treads 18 | . . 2 4 3 . 6 1 2 . . Leg . | . . . . . . . . . . . Wheel 3 | 2 . 1 . . . . . . . . Hover . | . . . . . . . . . . . Flight . | . . . . . . . . . . . Utility 26 | 1 2 . 6 5 . 7 4 . 1 . Device 14 | . . . . 5 . 6 2 . 1 . Storage 3 | 1 . . 2 . . . . . . . Processor 5 | . 1 . 1 . . 1 2 . . . Hackware . | . . . . . . . . . . . Protection 4 | . 1 . 3 . . . . . . . Artifact . | . . . . . . . . . . . Weapon 44 | 2 3 5 4 8 2 9 10 . 1 . Energy Gun 8 | 1 . 1 . 1 . 5 . . . . Energy Cannon 15 | . . . . 6 . . 8 . 1 . Ballistic Gun 9 | 1 . 2 4 1 . 1 . . . . Ballistic Cannon 8 | . 3 1 . . . 3 1 . . . Launcher 3 | . . 1 . . 2 . . . . . Special Weapon . | . . . . . . . . . . . Impact Weapon 1 | . . . . . . . 1 . . . Slashing Weapon . | . . . . . . . . . . . Piercing Weapon . | . . . . . . . . . . . Special Melee Weapon . | . . . . . . . . . . . Unidentified Prototypes 2 | . . . . . . 2 . . . . Parts Lost 39 | . . 4 1 7 4 9 6 1 . 7 Power 11 | . . 1 1 2 2 2 1 1 . 1 Propulsion 10 | . . 2 . . 1 4 1 . . 2 Utility 6 | . . . . 1 1 1 1 . . 2 Weapon 12 | . . 1 . 4 . 2 3 . . 2 Highest Loss Streak 6 | . . 1 1 3 3 5 2 1 . 6 To Critical Strikes 1 | . . . . . . 1 . . . . Average Backups 12 | 2 7 7 6 9 12 13 14 15 15 14 Power 1 | . 1 1 1 1 1 . 1 1 1 1 Propulsion 1 | 1 2 1 . 1 1 . 1 2 2 2 Utility 4 | . . . 1 5 7 7 6 5 5 5 Weapon 4 | . 4 4 3 1 1 4 5 7 7 6 Tool/Special . | . . . . . . . . . . . Unused Backups 26 | . 3 1 6 1 . 2 1 1 . 11 Power 2 | . 1 . . . . . . . . 1 Propulsion 3 | . . . . 1 . . . 1 . 1 Utility 14 | . 1 . 5 . . 2 1 . . 5 Weapon 7 | . 1 1 1 . . . . . . 4 Tool/Special . | . . . . . . . . . . . Average Slot Usage (%) 93 | . 97 95 89 96 98 86 93 98 93 97 Engine 4 | . 14 13 . 7 8 6 3 . . . Core 6 | . . . 8 8 8 3 7 14 8 14 Treads 14 | . . 14 17 18 17 14 14 14 15 14 Wheel 2 | . 28 9 . . . . . . . . Device 15 | . . . . 13 18 21 19 22 23 21 Storage 8 | . 14 14 9 9 9 7 7 7 7 7 Processor 7 | . 9 14 8 1 . 7 9 7 7 7 Protection 1 | . 2 . 8 2 . . . . . . Energy Gun 3 | . . 4 1 4 9 12 . . . . Energy Cannon 16 | . . . . 21 26 6 21 29 30 29 Ballistic Gun 5 | . . 15 24 9 . . . . . . Ballistic Cannon 4 | . 25 7 9 . . 5 6 . . . Peak Build Rating 54 | 6 9 14 27 42 43 47 49 54 54 54 Average Rating 37 | 3 7 11 22 36 41 40 45 49 51 53 On Entrance 29 | . 6 9 12 27 42 38 40 49 51 54 Naked Turns . | . . . . . . . . . . . Heaviest Build 75 | 11 17 16 41 67 67 56 75 75 74 74 Greatest Support 69 | 20 20 40 45 60 60 60 50 60 69 69 Greatest Overweight (x) 15 | . . 1 1 1 1 15 1 3 1 1 Average Overweight (x) . | . . . . . . . . 1 . 1 Largest Inventory Capacity 15 | 8 8 8 15 15 15 15 15 15 15 15 Average Capacity 13 | 7 8 8 8 15 15 15 15 15 15 15 Most Carried 15 | 5 8 8 9 13 15 15 15 15 15 15 Average Carried 12 | 3 7 7 7 9 12 13 14 15 15 14 Final Capacity 15 | 8 8 8 15 15 15 15 15 15 15 15 Final Carried 15 | 4 8 8 9 10 11 15 15 15 15 14 Class Distribution -------------------- 38% | Pyromaniac-Gunner 17% | Mutant 14% | Scavenger-Gunner 9% | Skirmisher 5% | Tank 5% | Scavenger-Tank 5% | Scavenger-Skirmisher Dominant Class ---------------- Mutant | -10/Materials Mutant | -10/Subcaves Tank | -8/Materials Scavenger-Gunner | -8/Garrison Scavenger-Gunner | -8/Materials Scavenger-Skirmisher | -7/Factory Pyromaniac-Gunner | -7/Garrison Pyromaniac-Gunner | -7/Factory Pyromaniac-Gunner | -7/Lower Caves Pyromaniac-Gunner | -7/Lower Caves Resources | -11 -10 -10 -8 -8 -8 -7 -7 -7 -7 -7 ----------- Run | Yrd Mat Sub Mat Gar Mat Fac Gar Fac Low Low Matter Collected 4473 | 260 187 704 770 739 80 499 846 272 97 19 Remotely . | . . . . . . . . . . . Salvage Created 6655 | . 210 636 935 993 398 863 1494 752 139 235 Parts 373 | . 17 57 60 63 15 49 45 52 6 9 Haulers Intercepted 1 | . . . . . . 1 . . . . Recyclers Shooed 1 | . . . . . 1 . . . . . Parts Field Recycled . | . . . . . . . . . . . Retrieved Matter . | . . . . . . . . . . . Parts Self-Destructed 46 | . . 28 . . . . . . 8 10 Prevented . | . . . . . . . . . . . Kills | -11 -10 -10 -8 -8 -8 -7 -7 -7 -7 -7 ------- Run | Yrd Mat Sub Mat Gar Mat Fac Gar Fac Low Low Combat Hostiles Destroyed 146 | . 7 20 20 22 9 18 33 10 2 5 Melee 1 | . . . . . . . . . . 1 Guns 40 | . . 12 15 6 1 6 . . . . Cannons 84 | . 7 6 4 15 5 7 28 8 2 2 AOE 16 | . . 2 1 1 2 3 3 2 . 2 Classes Destroyed 19 | . 4 2 6 2 . 1 2 2 . . Worker 7 | . . . 1 . . 1 . 5 . . Builder 5 | . . . 1 . . . . 4 . . Tunneler 2 | . . . . . . . . 2 . . Hauler 1 | . . . . . . 1 . . . . Carrier 1 | . . . . . . . 1 . . . Mechanic 1 | . . . . . . . . 1 . . Operator 1 | . 1 . . . . . . . . . Watcher 8 | . 3 . 4 . . . . 1 . . Swarmer 25 | . 3 5 5 3 . 4 4 . . 1 Grunt 50 | . 4 3 4 5 7 2 17 4 2 2 Brawler 5 | . . . 1 . . 1 2 . . 1 Duelist 5 | . . . 1 1 1 . 1 . . 1 Sentry 24 | . . . 8 6 . 6 3 1 . . Specialist 1 | . . . . . . . 1 . . . Hunter 9 | . . . 1 3 1 1 1 2 . . Programmer 14 | . . . . 3 . 4 5 2 . . Behemoth 1 | . . . . 1 . . . . . . Artisan 1 | . . 1 . . . . . . . . Subdweller 12 | . . 12 . . . . . . . . Decomposer 1 | . . . . . . . . . . 1 Infiltrator 1 | . . . . . . . . 1 . . Best Kill Streak 16 | . 5 3 7 6 6 6 4 16 2 5 Combat Bots Only 6 | . 4 3 6 6 6 5 4 6 2 5 Max Kills in Single Turn 4 | . 1 1 2 2 2 4 3 4 1 2 Gunslinging 1 | . . . 1 . . . . . . . Exploded 3 | . . 1 1 1 2 3 2 2 . 2 Melee 1 | . . . . . . . . . . 1 Uniques/NPCs Destroyed . | . . . . . . . . . . . Combat | -11 -10 -10 -8 -8 -8 -7 -7 -7 -7 -7 -------- Run | Yrd Mat Sub Mat Gar Mat Fac Gar Fac Low Low Hostile Shots Fired 776 | . 31 77 70 141 39 165 125 70 4 54 Missed 219 | . 5 32 14 33 12 59 34 19 . 11 Hits 557 | . 26 45 56 108 27 106 91 51 4 43 Melee 14 | . . . . . 1 3 2 . . 8 Projectile 543 | . 26 45 56 108 26 103 89 51 4 35 Critical Strikes 13 | . . . 1 3 . 3 3 . . 3 Part Disruptions 2 | . . . . . . . 1 1 . . Damage Taken 8422 | . 236 766 757 1714 455 1453 1312 701 61 967 Core 1293 | . 21 70 237 195 54 375 141 98 32 70 Absorbed by Shields . | . . . . . . . . . . . Regen/Repaired (Parts) 416 | . 62 . 96 . . . . 258 . . Core Remaining (%) 58 | 100 . 63 . . 11 . . . . . Volleys Fired 343 | . 22 70 42 49 19 44 68 16 5 8 Largest 4 | . 2 2 4 4 4 4 4 4 4 4 Hottest 360 | . 60 68 128 295 295 284 360 360 360 360 Shots Fired 988 | . 44 128 163 175 57 125 199 60 11 26 Gun 363 | . . 71 117 80 16 74 5 . . . Cannon 601 | . 44 53 44 92 37 50 192 56 11 22 Launcher 24 | . . 4 2 3 4 1 2 4 . 4 Special . | . . . . . . . . . . . Kinetic 489 | . 44 115 154 74 . 22 80 . . . Thermal 433 | . . . . 92 37 98 117 56 11 22 Explosive 24 | . . 4 2 3 4 1 2 4 . 4 Electromagnetic 42 | . . 9 7 6 16 4 . . . . Robot Hit Streak 27 | . 4 27 16 18 4 15 16 8 5 2 Robot Miss Streak 5 | . 3 2 4 4 4 3 4 3 1 5 Penetration Max 1 | . . . 1 . . . . . . . Secondary Targets 3 | . . . 2 . . 1 . . . . Max Gunslinging Chain 1 | . . . 1 . . 1 . . . . Shots Hit Robots 541 | . 23 81 90 100 29 78 91 31 5 13 Core Hits 285 | . 12 35 48 42 16 37 46 32 3 14 Critical Kills 3 | . . . . . 1 . 2 . . . Critical Parts Destroyed 1 | . . . . . . . . . . 1 Critical Strikes 11 | . 2 1 . . 2 2 3 . . 1 Burn 2 | . . . . . . 2 . . . . Meltdown 3 | . . . . . 1 . 2 . . . Blast 4 | . 2 1 . . . . 1 . . . Corrupt 1 | . . . . . 1 . . . . . Smash 1 | . . . . . . . . . . 1 Melee Attacks 58 | . . . . . . . 54 . . 4 Impact 58 | . . . . . . . 54 . . 4 Slashing . | . . . . . . . . . . . Piercing . | . . . . . . . . . . . Sneak Attacks . | . . . . . . . . . . . Combat Hostiles . | . . . . . . . . . . . Follow-up Attacks . | . . . . . . . . . . . Damage Inflicted 14691 | . 394 1538 1590 2302 1025 1848 3130 1867 159 838 Guns 4062 | . . 985 1158 745 161 936 77 . . . Cannons 8120 | . 394 400 362 1390 559 655 2701 1147 159 353 Explosions 2357 | . . 153 70 167 305 257 352 720 . 333 Melee 152 | . . . . . . . . . . 152 Ramming . | . . . . . . . . . . . Kinetic 5184 | . 394 1306 1446 670 . 358 1010 . . . Thermal 6601 | . . . . 1390 559 1225 1768 1147 159 353 Explosive 1985 | . . 153 70 167 305 257 352 348 . 333 Electromagnetic 769 | . . 79 74 75 161 8 . 372 . . Impact 152 | . . . . . . . . . . 152 Slashing . | . . . . . . . . . . . Piercing . | . . . . . . . . . . . Highest Corruption 4 | . . . . 3 3 3 4 4 4 4 Average Corruption 3 | . . . . 2 3 2 3 4 4 4 Corruption Purged . | . . . . . . . . . . . Corruption Blocked . | . . . . . . . . . . . Effects 247 | . . . . 29 10 22 88 39 49 10 Message Errors 59 | . . . . 6 2 5 20 11 11 4 Matter Fused 68 | . . . . 7 5 8 23 11 10 4 Heat Flow Errors 35 | . . . . 2 . 2 14 4 12 1 Energy Discharges 28 | . . . . 3 1 2 12 5 5 . Parts Fused 1 | . . . . . . . . . 1 . Data Loss (minor) 31 | . . . . 6 2 2 10 4 6 1 Data Loss (major) 10 | . . . . 2 . 1 4 3 . . Misfires 7 | . . . . 2 . 1 2 . 2 . Alerts 4 | . . . . 1 . 1 1 . 1 . Weapon Failures 4 | . . . . . . . 2 1 1 . Overload Shots . | . . . . . . . . . . . Overflow Damage 244 | . . 8 1 56 1 4 40 90 15 29 Projectiles 155 | . . . 1 27 1 4 38 69 15 . Explosions 60 | . . 8 . 29 . . 2 21 . . Melee 29 | . . . . . . . . . . 29 Knockbacks 26 | . 5 9 4 . . 3 5 . . . Impact . | . . . . . . . . . . . Kinetic 26 | . 5 9 4 . . 3 5 . . . Secondary . | . . . . . . . . . . . Self-Inflicted Damage 125 | . . 4 . 41 . 29 . 17 . 34 Shots 6 | . . 1 . 2 . 1 . 1 . 1 Rammed . | . . . . . . . . . . . Targets Rammed . | . . . . . . . . . . . Kicked . | . . . . . . . . . . . Crushed . | . . . . . . . . . . . Highest Temperature 519 | . 111 . 215 372 330 380 510 275 140 519 Average Temperature 121 | . 42 . 71 133 137 108 141 94 46 309 Received Heat Transfer 1821 | . 57 93 252 270 117 246 384 150 36 216 Effects 13 | . . . . 3 . 1 3 . . 6 Energy Bleed 6 | . . . . 3 . 1 1 . . 1 Interference 4 | . . . . . . . 1 . . 3 Matter Decay 1 | . . . . . . . . . . 1 Short Circuit 2 | . . . . . . . 1 . . 1 Siege Activations . | . . . . . . . . . . . Martial Activations . | . . . . . . . . . . . Shielding Activations . | . . . . . . . . . . . Robots Disrupted . | . . . . . . . . . . . Combat Hostiles . | . . . . . . . . . . . Robots Corrupted . | . . . . . . . . . . . Combat Hostiles . | . . . . . . . . . . . Parts Fried 4 | . . . . . . . . 4 . . Impact Corruptions 1 | . . . . . . . . . . 1 Robots Melted 6 | . . . . . 1 2 3 . . . Combat Hostiles 5 | . . . . . 1 2 2 . . . Parts Melted 39 | . . . . 2 4 12 17 2 . 2 Heat Transferred 10948 | . . . . 2089 1100 2511 2698 1750 250 550 Parts Sabotaged . | . . . . . . . . . . . Parts Stolen . | . . . . . . . . . . . Parts Stripped . | . . . . . . . . . . . Power Chain Reactions . | . . . . . . . . . . . Alert | -11 -10 -10 -8 -8 -8 -7 -7 -7 -7 -7 ------- Run | Yrd Mat Sub Mat Gar Mat Fac Gar Fac Low Low Maximum Alert Level 5 | . . . 1 3 3 1 5 5 . . Low Security (%) 33 | 100 100 . 84 24 . 82 3 . . . Level 1 12 | . . . 15 10 47 17 11 . . . Level 2 13 | . . . . 51 25 . 14 . . . Level 3 9 | . . . . 13 27 . 19 . . . Level 4 10 | . . . . . . . 11 51 . . Level 5 20 | . . . . . . . 40 48 . . High Security . | . . . . . . . . . . . Max Security . | . . . . . . . . . . . Peak Influence 2909 | . 111 . 265 779 818 364 2909 2505 . . Initial 1526 | . . . . 33 379 364 124 1526 . . Average 841 | . 48 . 80 435 529 171 1364 1898 . . Influence Increases 7839 | . 224 200 686 816 781 524 2925 1538 45 100 Destroy 0b10 Robot/C 3260 | . 140 160 400 480 340 360 720 520 40 100 Destroy 0b10 Robot/NC 225 | . 20 . 30 . 15 10 . 145 5 . Destroy Leader 546 | . 36 10 118 20 104 100 50 108 . . Allied During Kill 254 | . . . . 18 86 . 11 139 . . Successful Hack 165 | . 12 . 18 34 16 16 52 17 . . Disable Machine 450 | . 15 . 60 . 15 30 . 330 . . Anti-Garrison Action 2500 | . . . . 200 150 . 2000 150 . . Destroy Structure 289 | . 1 . 15 49 25 8 92 99 . . Lose Combat Pursuer 150 | . . 30 45 15 30 . . 30 . . Influence Decreases 7238 | . 220 204 634 89 758 1148 194 1955 1567 469 Entered New Map 3405 | . . 3 . 19 400 438 54 1383 923 185 Time Decay 3143 | . 220 191 474 . 238 620 . 542 644 214 Lost Part 360 | . . 10 10 70 40 90 60 10 . 70 Lost Ally 180 | . . . . . 80 . 80 20 . . Purge Threat 150 | . . . 150 . . . . . . . Squads Dispatched 27 | . 1 . 5 . 5 6 . 9 . 1 Investigation 4 | . . . 1 . . 1 . 2 . . Extermination 5 | . . . . . . 3 . 2 . . Reinforcement 7 | . 1 . 1 . 2 2 . 1 . . Assault 6 | . . . . . 2 . . 3 . 1 Garrison 5 | . . . 3 . 1 . . 1 . . Intercept . | . . . . . . . . . . . Searches Triggered . | . . . . . . . . . . . Construction Impeded 1 | . . . . . 1 . . . . . Haulers Reinforced . | . . . . . . . . . . . Active Scanning Responses . | . . . . . . . . . . . Cargo Convoy Interrupts . | . . . . . . . . . . . Stealth | -11 -10 -10 -8 -8 -8 -7 -7 -7 -7 -7 --------- Run | Yrd Mat Sub Mat Gar Mat Fac Gar Fac Low Low Distress Signals 10 | . 1 . 3 . 4 1 . 1 . . Communications Jammed . | . . . . . . . . . . . Distress Signals . | . . . . . . . . . . . Times Spotted 204 | . 11 24 30 24 19 26 30 28 2 10 Peak Tracking Total 9 | . 5 6 9 5 4 4 4 5 2 7 Tactical Retreats 6 | . . 1 1 1 1 . . 2 . . Traps | -11 -10 -10 -8 -8 -8 -7 -7 -7 -7 -7 ------- Run | Yrd Mat Sub Mat Gar Mat Fac Gar Fac Low Low Traps Triggered 22 | . . . . 4 . 2 15 1 . . Indirectly 1 | . . . . . . . . 1 . . Trap Hack Attempts . | . . . . . . . . . . . Triggered . | . . . . . . . . . . . Disarmed . | . . . . . . . . . . . Reprogrammed . | . . . . . . . . . . . Reused . | . . . . . . . . . . . Traps Extracted . | . . . . . . . . . . . Installed . | . . . . . . . . . . . Triggered . | . . . . . . . . . . . Machines | -11 -10 -10 -8 -8 -8 -7 -7 -7 -7 -7 ---------- Run | Yrd Mat Sub Mat Gar Mat Fac Gar Fac Low Low Machines Disabled 40 | . 1 . 4 3 2 2 5 23 . . Max in Single Turn 8 | . 1 . 2 1 1 1 1 8 . . Garrison Access 2 | . . . . . 1 . . 1 . . Garrison Relay 7 | . . . . 2 . . 5 . . . Machines Repaired . | . . . . . . . . . . . Machines Dismantled . | . . . . . . . . . . . Machines Sabotaged . | . . . . . . . . . . . Overloaded Fab Kills . | . . . . . . . . . . . Hacking | -11 -10 -10 -8 -8 -8 -7 -7 -7 -7 -7 --------- Run | Yrd Mat Sub Mat Gar Mat Fac Gar Fac Low Low Machines Accessed 42 | . 4 4 10 4 3 5 4 6 1 1 Terminals 26 | . 3 . 8 4 2 1 4 4 . . Fabricators 2 | . . . . . . 1 . 1 . . Repair Stations 4 | . 1 . 1 . . 1 . 1 . . Recycling Units . | . . . . . . . . . . . Scanalyzers 2 | . . . . . 1 1 . . . . Garrison Access 2 | . . . 1 . . 1 . . . . Total Hacks 115 | . 14 17 29 7 6 10 12 18 1 1 Successful 71 | . 7 17 17 3 4 7 4 10 1 1 Failed 43 | . 7 . 11 4 2 3 8 8 . . Catastrophic 11 | . 1 . 3 1 1 . 2 3 . . Database Lockouts 1 | . . . 1 . . . . . . . Manual 59 | . 12 8 23 2 4 2 1 7 . . Terminals 69 | . 12 . 25 7 4 2 12 7 . . Fabricators 4 | . . . . . . 2 . 2 . . Repair Stations 14 | . 2 . 2 . . 1 . 9 . . Recycling Units . | . . . . . . . . . . . Scanalyzers 4 | . . . . . 2 2 . . . . Garrison Access 5 | . . . 2 . . 3 . . . . Terminal Hacks 37 | . 2 17 10 2 1 . 3 . 1 1 Record 15 | . . 14 1 . . . . . . . Robot Analysis 2 | . . . 2 . . . . . . . Prototype ID Bank 3 | . 1 . 2 . . . . . . . Open Door 4 | . . 1 . 1 . . . . 1 1 Emergency Access Points 1 | . . . . . . . 1 . . . Unreport Threat 1 | . . . 1 . . . . . . . Locate Traps 3 | . 1 . 1 . 1 . . . . . Garrison Status 1 | . . . 1 . . . . . . . Zone Layout 2 | . . . 2 . . . . . . . Garrison Registry 2 | . . . . 1 . . 1 . . . Patrol Navigation 1 | . . . . . . . 1 . . . Proto ID Catalog 1 | . . 1 . . . . . . . . Release Object 1 | . . 1 . . . . . . . . Fabricator Hacks 3 | . . . . . . 1 . 2 . . Load Schematic 2 | . . . . . . 1 . 1 . . Build 1 | . . . . . . . . 1 . . Repair Station Hacks 11 | . 2 . 2 . . . . 7 . . Scan Component 6 | . 1 . 1 . . . . 4 . . Repair 5 | . 1 . 1 . . . . 3 . . Recycling Unit Hacks . | . . . . . . . . . . . Scanalyzer 4 | . . . . . 2 2 . . . . Insert Component 2 | . . . . . 1 1 . . . . Analyze 2 | . . . . . 1 1 . . . . Garrison Access Hacks 4 | . . . 1 . . 3 . . . . Unlock Access 2 | . . . 1 . . 1 . . . . Coupler Status 2 | . . . . . . 2 . . . . Unauthorized Hacks 12 | . 3 . 4 1 1 1 1 1 . . Terminals 12 | . 3 . 4 1 1 1 1 1 . . Botnet 12 | . 3 . 4 1 1 1 1 1 . . Fabricators . | . . . . . . . . . . . Repair Stations . | . . . . . . . . . . . Recycling Units . | . . . . . . . . . . . Scanalyzers . | . . . . . . . . . . . Garrison Access . | . . . . . . . . . . . Data Cores Recovered 1 | . . . . . . . . 1 . . Used 1 | . . . . . . . . 1 . . Hacking Detections 31 | . 3 . 9 2 3 4 4 6 . . Full Trace Events 3 | . . . 1 . . . 1 1 . . Feedback Events . | . . . . . . . . . . . Feedback Blocked . | . . . . . . . . . . . Robot Schematics Acquired . | . . . . . . . . . . . Robots Built . | . . . . . . . . . . . Authchips . | . . . . . . . . . . . Time . | . . . . . . . . . . . Total Robot Build Rating . | . . . . . . . . . . . Part Schematics Acquired 2 | . . . . . 1 1 . . . . Parts Built 2 | . . . . . . . . 2 . . Authchips . | . . . . . . . . . . . Time 95 | . . . . . . . . 95 . . Total Part Build Rating 10 | . . . . . . . . 10 . . Parts Repaired 5 | . 1 . 1 . . . . 3 . . Time 193 | . 26 . 26 . . . . 141 . . Parts Recycled . | . . . . . . . . . . . Recycled Matter . | . . . . . . . . . . . Retrieved Matter . | . . . . . . . . . . . Retrieved Components . | . . . . . . . . . . . Parts Scanalyzed 2 | . . . . . 1 1 . . . . Part Schematics Acquired 2 | . . . . . 1 1 . . . . Parts Damaged 1 | . . . . . . 1 . . . . Bothacking | -11 -10 -10 -8 -8 -8 -7 -7 -7 -7 -7 ------------ Run | Yrd Mat Sub Mat Gar Mat Fac Gar Fac Low Low Used RIF Installer 2 | . . . . 1 . . 1 . . . Robot Detection 1 | . . . . . . . 1 . . . Robots Hacked . | . . . . . . . . . . . Non-combat . | . . . . . . . . . . . Combat . | . . . . . . . . . . . Robot Hacks Applied . | . . . . . . . . . . . Relay Couplers Released 30 | . . . . 8 . . 17 5 . . Machine Destruction 27 | . . . . 8 . . 17 2 . . Programmers 3 | . . . . . . . . 3 . . Fabnet Peak Effective % . | . . . . . . . . . . . Robots Rewired 8 | . . . . 2 . . 6 . . . Allies Hacked 1 | . . . . . . . . 1 . . Hacks Repelled . | . . . . . . . . . . . Allies | -11 -10 -10 -8 -8 -8 -7 -7 -7 -7 -7 -------- Run | Yrd Mat Sub Mat Gar Mat Fac Gar Fac Low Low Total Allies 12 | . . . . 4 . . 8 . . . Largest Group 4 | . . . . 4 4 . 3 2 . . Highest-Rated Group 190 | . . . . 99 99 . 190 190 . . Highest-Rated Ally 95 | . . . . 31 31 . 95 95 . . Total Orders . | . . . . . . . . . . . Ally Attacks 129 | . . . . 2 75 . 10 42 . . Total Damage 3948 | . . . . 42 1139 . 253 2514 . . Kills 47 | . . . . 2 11 . 2 32 . . Allies Corrupted . | . . . . . . . . . . . Allies Melted 2 | . . . . . . . 2 . . . Intel | -11 -10 -10 -8 -8 -8 -7 -7 -7 -7 -7 ------- Run | Yrd Mat Sub Mat Gar Mat Fac Gar Fac Low Low Active Infowar (turns) 6229 | . 389 2321 632 23 . 1666 1198 . . . Optics 3342 | . 389 2321 632 . . . . . . . Sensors 2887 | . . . . 23 . 1666 1198 . . . Robot Analysis Total 2 | . . . 2 . . . . . . . Derelict Logs Recovered 3 | . . 1 . . . . . . 1 1 Drone Launches . | . . . . . . . . . . . Drone Recoveries . | . . . . . . . . . . . Exploration | -11 -10 -10 -8 -8 -8 -7 -7 -7 -7 -7 ------------- Run | Yrd Mat Sub Mat Gar Mat Fac Gar Fac Low Low Turns Passed 17371 | 48 587 2321 1426 1797 500 2085 4273 1553 2331 450 Spaces Moved 8052 | 45 324 1681 732 736 198 935 1573 556 1102 170 Core 16 | 14 . . . . . 2 . . . . Treads 6689 | . . 689 732 736 198 933 1573 556 1102 170 Legs . | . . . . . . . . . . . Wheels 1347 | 31 324 992 . . . . . . . . Hover . | . . . . . . . . . . . Flight . | . . . . . . . . . . . Fastest Speed 50 | 50 80 80 152 152 160 152 152 240 160 240 Average Speed 181 | 70 80 117 159 201 210 166 233 240 208 240 Slowest Speed 800 | 80 80 160 240 240 240 800 240 400 240 240 Overloaded Moves . | . . . . . . . . . . . Propulsion Burnouts . | . . . . . . . . . . . Robots Hopped . | . . . . . . . . . . . Potential Cave-ins . | . . . . . . . . . . . Cave-ins Triggered . | . . . . . . . . . . . Exploration Rate (%) 48 | 2 59 79 50 57 29 23 97 20 98 23 Regions Visited 10 Branch Regions 3 Pre-discovered Areas 3 | . . 2 . . . . . . . 1 Known Exits Taken 3 | . . . 1 . . 1 . 1 . . Unknown Exits Taken 5 | 1 1 1 . . 1 . . . 1 . Scrap Searched 7 | . . 5 . . . . . . 2 . Spaces Dug 4 | . . . . . . 1 3 . . . Terrain Destroyed 182 | . . 20 12 19 35 5 7 35 6 43 Melee 3 | . . . . . . . 3 . . . Projectile 39 | . . . 2 2 8 2 . 9 6 10 AOE 140 | . . 20 10 17 27 3 4 26 . 33 Terrain Rammed . | . . . . . . . . . . . Walls Destroyed . | . . . . . . . . . . . Machines Disabled . | . . . . . . . . . . . Actions | -11 -10 -10 -8 -8 -8 -7 -7 -7 -7 -7 --------- Run | Yrd Mat Sub Mat Gar Mat Fac Gar Fac Low Low Total 10041 | 60 612 1906 896 943 242 1380 1952 729 1134 187 Wait 1095 | . 240 124 67 71 11 315 98 144 23 2 Move 8040 | 44 323 1680 731 734 197 934 1571 555 1101 170 Hop . | . . . . . . . . . . . Pick Up 106 | 10 13 5 16 19 5 23 14 1 . . Fast Attach 26 | . . 3 6 . . 5 7 3 2 . Attach 77 | 6 5 3 7 18 4 23 10 . . 1 Detach 19 | . . . . 2 1 14 2 . . . Swap 55 | . 1 11 8 10 4 7 4 7 1 2 Drop 77 | . 8 7 19 9 1 15 13 3 2 . Fire 343 | . 22 70 42 49 19 44 68 16 5 8 Melee 58 | . . . . . . . 54 . . 4 Ram . | . . . . . . . . . . . Kick . | . . . . . . . . . . . Crush . | . . . . . . . . . . . Escape Stasis 34 | . . . . 6 . . 28 . . . Rewire 110 | . . 2 . 25 . . 83 . . . Trap . | . . . . . . . . . . . Miscellaneous 1 | . . 1 . . . . . . . . Route ------- -11/Scrapyard -10/Materials (discovered 4 exits: [*Mat x2] / [*Min] / *Sub) -10/Subcaves -8/Materials -8/Garrison (discovered 3 exits: *Mat x3) -8/Materials -7/Factory (discovered 4 exits: Fac / *Low x2 / Gar) -7/Garrison (discovered 4 exits: *Fac x4) -7/Factory -7/Lower Caves (discovered 2 exits: *Low / [*Zio]) -7/Lower Caves (discovered 1 exit: *Fac) History --------- Turn | Location | Event 9 | -11/Scrapyard | Discovered new exit (range 16) 49 | -11/Scrapyard | Entered Materials 273 | -10/Materials | Discovered new exit (range 12) 297 | -10/Materials | Repaired Lgt. Cannon 311 | -10/Materials | Build established: Mutant 385 | -10/Materials | Discovered new exit (range 3) 442 | -10/Materials | Discovered new exit (range 6) 625 | -10/Materials | Discovered new exit (range 6) 636 | -10/Materials | Entered Subcaves 637 | -10/Subcaves | Approached by a straggling Scientist 814 | -10/Subcaves | A swath of the cavern ceiling suddenly collapsed 885 | -10/Subcaves | Visited 4L-MR0's lab 1263 | -10/Subcaves | Visited Clippyterm 1266 | -10/Subcaves | Learned location of Section 7 (-2) 1266 | -10/Subcaves | Learned 40 Factory zone layouts 1546 | -10/Subcaves | Discovered new exit (range 17) 1648 | -10/Subcaves | Learned location of Storage (-9) 1698 | -10/Subcaves | Shifting Twisted Machinery released Scrap Shield 1708 | -10/Subcaves | Shifting Twisted Machinery released Barrage Gun 1858 | -10/Subcaves | Released subatomizers from SUBCON Basin 1896 | -10/Subcaves | Ambushed by angry Subdweller bent on revenge 2957 | -10/Subcaves | Entered Materials 2957 | -8/Materials | Evolved 4 slots: Power x1, Utility x1, Weapon x2 3017 | -8/Materials | Garrison activated, responded to threat 3087 | -8/Materials | Repaired Lgt. Treads 3263 | -8/Materials | Build established: Tank 3710 | -8/Materials | Central database locked down 4233 | -8/Materials | Build established: Scavenger-Tank 4381 | -8/Materials | Identified exit to Garrison 4383 | -8/Materials | Entered Garrison 4461 | -8/Garrison | Triggered checkpoint 4475 | -8/Garrison | Core integrity fell below 50% 4669 | -8/Garrison | Spotted B-75 Beast 4695 | -8/Garrison | Destroyed B-75 Beast 4725 | -8/Garrison | Lost 3 parts (3w) 4907 | -8/Garrison | Triggered checkpoint 4969 | -8/Garrison | Triggered checkpoint 5086 | -8/Garrison | Discovered new exit (range 19) 5086 | -8/Garrison | Discovered new exit (range 49) 5086 | -8/Garrison | Discovered new exit (range 52) 5263 | -8/Garrison | Build established: Scavenger-Gunner 5522 | -8/Garrison | Installed Relay Interface Framework 5921 | -8/Garrison | Rescued a captive Derelict 5922 | -8/Garrison | Rescued a captive Derelict 5937 | -8/Garrison | Triggered checkpoint 5985 | -8/Garrison | Garrison Relay disabled 6180 | -8/Garrison | Entered Materials 6180 | -8/Materials | Accompanied by 4 allies 6430 | -8/Materials | Garrison activated, responded to threat 6557 | -8/Materials | Core integrity fell below 20% 6602 | -8/Materials | Lost 4 allies 6638 | -8/Materials | Lost 3 parts (1p1n1u) 6670 | -8/Materials | Discovered new exit (range 4) 6680 | -8/Materials | Entered Factory 6680 | -7/Factory | Evolved 2 slots: Utility x2 6681 | -7/Factory | Identified exit to Lower Caves 6681 | -7/Factory | Identified exit to Factory 6987 | -7/Factory | Build established: Scavenger-Skirmisher 7622 | -7/Factory | Lost 5 parts (2p2n1u) 7975 | -7/Factory | Core integrity fell below 50% 8393 | -7/Factory | Build established: Skirmisher 8763 | -7/Factory | Identified exit to Garrison 8765 | -7/Factory | Entered Garrison 8827 | -7/Garrison | Triggered checkpoint 8931 | -7/Garrison | Garrison Relay disabled 9043 | -7/Garrison | Triggered checkpoint 9161 | -7/Garrison | Triggered checkpoint 9199 | -7/Garrison | Triggered checkpoint 9327 | -7/Garrison | Discovered new exit (range 10) 9373 | -7/Garrison | Triggered checkpoint 9403 | -7/Garrison | Garrison Relay disabled 9479 | -7/Garrison | Triggered checkpoint 9554 | -7/Garrison | Discovered new exit (range 5) 9562 | -7/Garrison | Identified exit to Factory 9903 | -7/Garrison | Triggered checkpoint 10009 | -7/Garrison | Garrison Relay disabled 10114 | -7/Garrison | Discovered exit to Factory (range 10) 10177 | -7/Garrison | Triggered checkpoint 10213 | -7/Garrison | Triggered checkpoint 10252 | -7/Garrison | Garrison Relay disabled 10269 | -7/Garrison | Build established: Pyromaniac-Gunner 10362 | -7/Garrison | Expanded RIF knowledge: Robot Detection 10565 | -7/Garrison | Triggered checkpoint 10574 | -7/Garrison | Triggered checkpoint 10625 | -7/Garrison | Lost 3 allies 10711 | -7/Garrison | Triggered checkpoint 11032 | -7/Garrison | Discovered exit to Factory (range 10) 11109 | -7/Garrison | Triggered checkpoint 11145 | -7/Garrison | Garrison Relay disabled 11595 | -7/Garrison | Discovered exit to Factory (range 77) 11595 | -7/Garrison | Discovered exit to Factory (range 20) 11595 | -7/Garrison | Discovered exit to Factory (range 83) 11595 | -7/Garrison | Discovered exit to Factory (range 42) 11961 | -7/Garrison | Build established: Scavenger-Gunner 12227 | -7/Garrison | Found embedded Infiltrators 12540 | -7/Garrison | Build established: Pyromaniac-Gunner 13038 | -7/Garrison | Entered Factory 13038 | -7/Factory | Accompanied by 2 allies 13320 | -7/Factory | Repaired Med. Treads 13366 | -7/Factory | Repaired Imp. Cooling System 13420 | -7/Factory | Repaired Broken Lgt. Nuclear Core 13829 | -7/Factory | Garrison activated, responded to threat 13915 | -7/Factory | P-60 Hacker assimilated allied ID-02N(x) 14110 | -7/Factory | Core integrity fell below 20% 14238 | -7/Factory | First assault squad dispatched 14240 | -7/Factory | Fabricated Imp. Medium Treads (x2) 14555 | -7/Factory | Discovered exit to Lower Caves (range 15) 14591 | -7/Factory | Entered Lower Caves 14763 | -7/Lower Caves | Encountered a Warlord checkpoint 14831 | -7/Lower Caves | Learned Factory stockpile data 15745 | -7/Lower Caves | A Derelict revealed a hidden shortcut to a safe place 16428 | -7/Lower Caves | Discovered new exit (range 14) 16922 | -7/Lower Caves | Entered another Lower Caves area 17089 | -7/Lower Caves | Discovered exit to Factory (range 13) 17176 | -7/Lower Caves | Learned location of Zion (-6) 17312 | -7/Lower Caves | Attracted the attention of an 0b10 outpost 17372 | -7/Lower Caves | Destroyed by G-50 Soldier with Heavy Laser Last Messages --------------- 17359_ Power failure averted by Cryofiber Web. 17359_ Overheating: Matter decay (-47). 17359_ Aluminum Leg fries itself beyond repair. 17361_ Power failure averted by Cryofiber Web. 17361_ Axe fries itself beyond repair. 17363_ B-48 Gladiator destroyed. 17365_ L-41 Fighter suffers critical hit (Smash). 17365_ Destroyed Carbon-fiber Leg. 17365_ L-41 Fighter system corrupted by crushing effect. 17366_ Particle Gun fries itself beyond repair. 17366_ Imp. Grenade Launcher destroyed. 17367_ Imp. Medium Treads destroyed. 17367_ 9T-5FX(k) breaks down the debris. 17370_ Imp. Cooling System destroyed. 17371_ M-28 Smith fits Backup Propulsion III on Y-64 Sentinel. 17372_ Penetrated by Slug. 17372_ Imp. Medium Treads destroyed. Map ----- +----------------------------------------------------+ | ?????????????????????????????????????????????????? | | ?????????????????????????????????????????????????# | | ?????????????????????????????????????????????##### | | ?????????????????????????????????????????????# | | ?????????????????????????????????????????????# ### | | ?????????????????????????????????????######### #?# | | ????????????????????????????######???# #?? | | ???????????????????????###### #?### ### | | ??????????????????????## ### ########? | | ??????????????????##### ## #?#//!#### | | ??????????????????# ## ###//!! X | | ??????????????????# ### ## # | | ??????????????????# k ## ##!!|| | | ?????????????????# ## ###!!|### | | ????????????????# #### ### ##?###?### | | ???????????????# ????# ##?# #??????# | | ??????????????# ?????# #??# #????# | | ?????????????# ???#### #??## #???# | | ?????????????? ????# ### ## #??## | | ??????????????? ????## #??## | | ????????????????????# ?? | | ????????????????????# % | | ????????????????????# % ##### | | ????????????????????# mY ##??## # | | ??????????????????### ## g ## ##??# # | | ?????????????????## ### @l ## #?## # | | ????????????????## #?## %= # # ### # | | ???????????????## #### #? ### | | ?????????????### % ; ##?? # "= # | | ?????????????#" [% #####??? #### #### # | | ????????????#" ###"####????????#??#"##??# | | ????????# !%= ??##???????????????##????## # | | ?????? =% "" ??????????????????????????# | | ????? = ##### ??????????????????????????## # | | ?????? " #?????##????????????????????????????## # | | ?????? #??????????????????????????????????????### | | ?????????????????????????????????????????????????? | | ?????????????????????????????????????????????????? | | ?????????????????????????????????????????????????? | | ?????????????????????????????????????????????????? | | ?????????????????????????????????????????????????? | | ?????????????????????????????????????????????????? | | ?????????????????????????????????????????????????? | | ?????????????????????????????????????????????????? | | ?????????????????????????????????????????????????? | | ?????????????????????????????????????????????????? | | ?????????????????????????????????????????????????? | | ?????????????????????????????????????????????????? | | ?????????????????????????????????????????????????? | | ?????????????????????????????????????????????????? | +----------------------------------------------------+ Best States ------------- Heat Dissipation 89 Energy Generation 25 Energy Capacity 350 Matter Stores 300 Matter Capacity 300 Sight Range 18 Robot Scan Range 15 Terrain Scan Density 10 Additional Mass Support 9 Base Temperature (-) 100 Armor Coverage 150 Evasion (%) 50 Targeting Accuracy 14 Recoil Reduction 2 Item Schematics ----------------- Imp. Medium Treads | -8/Materials | Scanalyzed Plasma Cannon | -7/Factory | Scanalyzed Robot Schematics ------------------ None Fabricated ------------ Imp. Medium Treads | x2 | -7/Factory Repaired ---------- Lgt. Cannon | 48% | -10/Materials Lgt. Treads | 31% | -8/Materials Med. Treads | 9% | -7/Factory Imp. Cooling System | 25% | -7/Factory Lgt. Nuclear Core | 24% | -7/Factory | Broken Alien Tech Used ----------------- None Achievements -------------- None Challenges ------------ None Game ------ Seed SmartbombSiegeStripper Manual? 0 Play Time 02:11:39 Cumulative 58.1 hours Start 2025.05.30 @ 18:42:57 End 2025.05.30 @ 21:38:49 Sessions 3 Manual Loads 0 Difficulty Rogue Special Mode None Game No. 58 Rogue 58 Adventurer 0 Explorer 0 Win Type - Total 2 Types 2/0/0/0/0/0/0/0/0/0 Lore% 40 Gallery% 32 Achievement% 34 Wizard Run 0 Options --------- Layout 1 ASCII 0 Keyboard 0 Movement Mouse Keybinds 0 Fullscreen 1 Font 24/Smallcaps Map View 50x35 Zoom Use 0% Tactical HUD 1 Map Filters NONE Filters NONE Steam 1 RUN: 7cadf46a-a420-4156-80f7-ce30720a3ac4